Cogmind - Beta 12 @@@ ROGUE MODE // 2023.03.12 @ 22:33:35 Player: dhtilly Result: Destroyed by S-10 Pest with Light Assault Rifle Performance ------------- Evolutions (0) 0 Regions Visited (4) 800 Robots Destroyed (34) 170 Value Destroyed (658) 658 Prototype IDs (1) 20 Alien Tech Used (0) 0 Bonus (0) 0 TOTAL SCORE: 1648 Bonus ------- None Cogmind --------- Core Integrity 0/250 Matter 251/300 Energy 264/265 System Corruption 0% Temperature Cool (33) Movement Core (850) Ox16 Location -9/Mines Parts ------- > --- POWER (1) -------- Reinforced Ion Engine > --- PROPULSION (2) --- (None) > --- UTILITY (2) ------ High-capacity Storage Unit > --- WEAPON (2) ------- Light Assault Rifle > --- INVENTORY (20) --- Heavy Ion Engine Light Nuclear Core Light Treads Light Treads Improved Heat Sink Large Storage Unit Makeshift Sensor Array Hacking Suite Makeshift System Shield Small Laser Particle Gun Assault Rifle Light Assault Rifle Light Assault Rifle Makeshift Shrapnel Gun Peak State ------------ > --- POWER ------------ Heavy Ion Engine > --- PROPULSION ------- Wheel Compact Wheel > --- UTILITY ---------- High-capacity Storage Unit Light Armor Plating > --- WEAPON ----------- Assault Rifle Light Assault Rifle > --- INVENTORY -------- Heavy Ion Engine Light Treads Light Treads Wheel Large Storage Unit Makeshift Sensor Array Hacking Suite Makeshift System Shield Assault Rifle Light Assault Rifle Light Assault Rifle Light Assault Rifle Makeshift Shrapnel Gun Grenade Launcher [Rating: 12] Favorites ----------- Power Heavy Ion Engine Engine Heavy Ion Engine Propulsion Wheel Wheel Wheel Utility High-capacity Storage Unit Storage High-capacity Storage Unit Protection Light Armor Plating Weapon Light Assault Rifle Energy Gun Medium Laser Ballistic Gun Light Assault Rifle Launcher Grenade Launcher Build | -11 -10 -10 -10 -9 ------- Run | Jun Mat Min Exi Min Slots Evolved . | . . . . . Power . | . . . . . Propulsion . | . . . . . Utility . | . . . . . Weapon . | . . . . . Parts Attached 27 | 6 15 . 1 5 Power 7 | 1 5 . . 1 Engine 7 | 1 5 . . 1 Core . | . . . . . Reactor . | . . . . . Propulsion 5 | 2 2 . . 1 Treads . | . . . . . Leg . | . . . . . Wheel 5 | 2 2 . . 1 Hover . | . . . . . Flight . | . . . . . Utility 6 | 1 3 . 1 1 Device . | . . . . . Storage 3 | 1 1 . 1 . Processor . | . . . . . Hackware . | . . . . . Protection 3 | . 2 . . 1 Artifact . | . . . . . Weapon 9 | 2 5 . . 2 Energy Gun 2 | 1 1 . . . Energy Cannon . | . . . . . Ballistic Gun 4 | 1 2 . . 1 Ballistic Cannon . | . . . . . Launcher 3 | . 2 . . 1 Special Weapon . | . . . . . Impact Weapon . | . . . . . Slashing Weapon . | . . . . . Piercing Weapon . | . . . . . Special Melee Weapon . | . . . . . Unidentified Prototypes 1 | . 1 . . . Parts Lost 11 | . 3 . . 8 Power . | . . . . . Propulsion 4 | . 1 . . 3 Utility 3 | . 1 . . 2 Weapon 4 | . 1 . . 3 Highest Loss Streak 4 | . 3 . . 4 To Critical Strikes . | . . . . . Average Slot Usage (%) 93 | . 96 100 100 83 Engine 13 | . 13 14 14 14 Wheel 23 | . 26 28 28 14 Storage 14 | . 14 14 14 14 Protection 12 | . 12 14 14 11 Energy Gun 3 | . 11 . . . Ballistic Gun 24 | . 15 28 28 27 Naked Turns . | . . . . . Heaviest Build 61 | 14 34 34 54 61 Greatest Support 26 | 26 26 26 26 20 Greatest Overweight (x) 6 | . 2 1 2 6 Average Overweight (x) 1 | . . 1 1 4 Largest Inventory Capacity 20 | 8 15 15 20 20 Average Capacity 16 | 7 12 15 17 20 Most Carried 17 | 4 12 11 14 17 Average Carried 11 | 1 7 11 11 15 Final Capacity 20 | 8 15 15 20 20 Final Carried 15 | 4 11 11 14 15 Class Distribution -------------------- 100% | Mutant Dominant Class ---------------- Mutant | -10/Materials Mutant | -10/Mines Mutant | -10/Exiles Mutant | -9/Mines Resources | -11 -10 -10 -10 -9 ----------- Run | Jun Mat Min Exi Min Matter Collected 755 | 227 262 . 100 166 Remotely . | . . . . . Salvage Created 1022 | . 406 . 100 516 Parts 61 | . 29 . 4 28 Haulers Intercepted 1 | . 1 . . . Recyclers Shooed 2 | . . . . 2 Parts Field Recycled . | . . . . . Retrieved Matter . | . . . . . Parts Self-Destructed . | . . . . . Prevented . | . . . . . Kills | -11 -10 -10 -10 -9 ------- Run | Jun Mat Min Exi Min Combat Hostiles Destroyed 26 | . 14 . . 12 Guns 16 | . 8 . . 8 AOE 10 | . 6 . . 4 Classes Destroyed 8 | . 6 . . 2 Worker 4 | . 3 . . 1 Hauler 1 | . 1 . . . Recycler 2 | . 1 . . 1 Operator 1 | . 1 . . . Swarmer 12 | . 9 . . 3 Grunt 12 | . 5 . . 7 Brawler 1 | . . . . 1 Duelist 1 | . . . . 1 Best Kill Streak 11 | . 11 . . 5 Combat Bots Only 8 | . 8 . . 4 Max Kills in Single Turn 2 | . 2 . . 2 Gunslinging 1 | . . . . 1 Exploded 2 | . 2 . . 2 Melee . | . . . . . Uniques/NPCs Destroyed . | . . . . . Combat | -11 -10 -10 -10 -9 -------- Run | Jun Mat Min Exi Min Damage Taken 1148 | . 489 . . 659 Core 258 | . 143 . . 115 Absorbed by Shields . | . . . . . Redirected to Shielding 51 | . 51 . . . Core Remaining (%) 100 | 100 . . . . Volleys Fired 105 | . 40 . 21 44 Largest 2 | . 2 . 2 2 Hottest 70 | . 70 . 40 40 Shots Fired 200 | . 76 . 42 82 Gun 190 | . 71 . 42 77 Cannon . | . . . . . Launcher 10 | . 5 . . 5 Special . | . . . . . Kinetic 156 | . 37 . 42 77 Thermal 34 | . 34 . . . Explosive 10 | . 5 . . 5 Electromagnetic . | . . . . . Robot Hit Streak 10 | . 6 . 9 10 Robot Miss Streak 5 | . 5 . 2 4 Penetration Max . | . . . . . Secondary Targets 5 | . 3 . . 2 Max Gunslinging Chain 1 | . 1 . . 1 Shots Hit Robots 119 | . 37 . 23 59 Core Hits 65 | . 27 . 9 29 Critical Kills 1 | . . . . 1 Critical Parts Destroyed . | . . . . . Critical Strikes 2 | . 1 . . 1 Burn 1 | . 1 . . . Destroy 1 | . . . . 1 Melee Attacks . | . . . . . Impact . | . . . . . Slashing . | . . . . . Piercing . | . . . . . Sneak Attacks . | . . . . . Combat Hostiles . | . . . . . Follow-up Attacks . | . . . . . Damage Inflicted 2140 | . 1038 . 267 835 Guns 1296 | . 502 . 267 527 Cannons . | . . . . . Explosions 844 | . 536 . . 308 Melee . | . . . . . Ramming . | . . . . . Kinetic 1122 | . 328 . 267 527 Thermal 174 | . 174 . . . Explosive 844 | . 536 . . 308 Electromagnetic . | . . . . . Impact . | . . . . . Slashing . | . . . . . Piercing . | . . . . . Highest Corruption . | . . . . . Average Corruption . | . . . . . Corruption Purged . | . . . . . Corruption Blocked . | . . . . . Overload Shots . | . . . . . Overflow Damage 11 | . 7 . . 4 Projectiles . | . . . . . Explosions 11 | . 7 . . 4 Melee . | . . . . . Knockbacks . | . . . . . Impact . | . . . . . Kinetic . | . . . . . Secondary . | . . . . . Self-Inflicted Damage 75 | . 3 . . 72 Shots 4 | . 1 . . 3 Rammed . | . . . . . Targets Rammed . | . . . . . Kicked . | . . . . . Crushed . | . . . . . Highest Temperature 115 | . 115 . 16 80 Average Temperature 33 | . 48 . 7 27 Received Heat Transfer 390 | . 48 . . 342 Siege Activations . | . . . . . Robots Corrupted . | . . . . . Combat Hostiles . | . . . . . Parts Fried . | . . . . . Impact Corruptions . | . . . . . Robots Melted . | . . . . . Combat Hostiles . | . . . . . Parts Melted 1 | . 1 . . . Heat Transferred 592 | . 592 . . . Parts Sabotaged . | . . . . . Parts Stolen . | . . . . . Parts Stripped . | . . . . . Power Chain Reactions . | . . . . . Missiles Intercepted . | . . . . . Alert | -11 -10 -10 -10 -9 ------- Run | Jun Mat Min Exi Min Peak Influence 290 | . 290 112 . 168 Initial 112 | . . 112 . . Average 81 | . 87 112 . 80 Maximum Alert Level 1 | . 1 . . . Low Security (%) 94 | 100 86 100 . 100 Level 1 5 | . 13 . . . Level 2 . | . . . . . Level 3 . | . . . . . Level 4 . | . . . . . Level 5 . | . . . . . High Security . | . . . . . Max Security . | . . . . . Squads Dispatched 2 | . 2 . . . Investigation . | . . . . . Extermination . | . . . . . Reinforcement 2 | . 2 . . . Assault . | . . . . . Garrison . | . . . . . Intercept . | . . . . . Searches Triggered . | . . . . . Construction Impeded . | . . . . . Haulers Reinforced . | . . . . . Active Scanning Responses . | . . . . . Cargo Convoy Interrupts . | . . . . . Stealth | -11 -10 -10 -10 -9 --------- Run | Jun Mat Min Exi Min Distress Signals 3 | . 3 . . . Communications Jammed . | . . . . . Distress Signals . | . . . . . Times Spotted 39 | . 24 . . 15 Peak Tracking Total 7 | . 6 . . 7 Tactical Retreats 1 | . 1 . . . Traps | -11 -10 -10 -10 -9 ------- Run | Jun Mat Min Exi Min Traps Triggered 3 | . 3 . . . Indirectly . | . . . . . Trap Hack Attempts . | . . . . . Triggered . | . . . . . Disarmed . | . . . . . Reprogrammed . | . . . . . Reused . | . . . . . Traps Extracted . | . . . . . Installed . | . . . . . Triggered . | . . . . . Machines | -11 -10 -10 -10 -9 ---------- Run | Jun Mat Min Exi Min Machines Disabled . | . . . . . Max in Single Turn . | . . . . . Machines Repaired . | . . . . . Machines Sabotaged . | . . . . . Overloaded Fab Kills . | . . . . . Hacking | -11 -10 -10 -10 -9 --------- Run | Jun Mat Min Exi Min Machines Accessed 11 | . 6 . 4 1 Terminals 7 | . 6 . . 1 Fabricators . | . . . . . Repair Stations . | . . . . . Recycling Units . | . . . . . Scanalyzers . | . . . . . Garrison Access . | . . . . . Total Hacks 31 | . 25 . 4 2 Successful 18 | . 12 . 4 2 Failed 13 | . 13 . . . Catastrophic . | . . . . . Database Lockouts . | . . . . . Manual 17 | . 14 . 1 2 Terminals 27 | . 25 . . 2 Fabricators . | . . . . . Repair Stations . | . . . . . Recycling Units . | . . . . . Scanalyzers . | . . . . . Garrison Access . | . . . . . Terminal Hacks 11 | . 6 . 4 1 Record 4 | . . . 4 . Branch Access Points 2 | . 1 . . 1 Terminal Index 1 | . 1 . . . Unreport Threat 1 | . 1 . . . Locate Traps 1 | . 1 . . . Hauler Manifests 1 | . 1 . . . Zone Layout 1 | . 1 . . . Fabricator Hacks . | . . . . . Repair Station Hacks . | . . . . . Recycling Unit Hacks . | . . . . . Scanalyzer . | . . . . . Garrison Access Hacks . | . . . . . Unauthorized Hacks 7 | . 6 . . 1 Terminals 7 | . 6 . . 1 Botnet 7 | . 6 . . 1 Fabricators . | . . . . . Repair Stations . | . . . . . Recycling Units . | . . . . . Scanalyzers . | . . . . . Garrison Access . | . . . . . Data Cores Recovered . | . . . . . Used . | . . . . . Hacking Detections 7 | . 6 . . 1 Full Trace Events . | . . . . . Feedback Events . | . . . . . Feedback Blocked . | . . . . . Robot Schematics Acquired . | . . . . . Robots Built . | . . . . . Authchips . | . . . . . Time . | . . . . . Total Robot Build Rating . | . . . . . Part Schematics Acquired . | . . . . . Parts Built . | . . . . . Authchips . | . . . . . Time . | . . . . . Total Part Build Rating . | . . . . . Parts Repaired . | . . . . . Time . | . . . . . Parts Recycled . | . . . . . Recycled Matter . | . . . . . Retrieved Matter . | . . . . . Retrieved Components . | . . . . . Parts Scanalyzed . | . . . . . Part Schematics Acquired . | . . . . . Parts Damaged . | . . . . . Bothacking | -11 -10 -10 -10 -9 ------------ Run | Jun Mat Min Exi Min Used RIF Installer . | . . . . . Robots Hacked . | . . . . . Non-combat . | . . . . . Combat . | . . . . . Robot Hacks Applied . | . . . . . Relay Couplers Released . | . . . . . Fabnet Peak Effective % . | . . . . . Robots Rewired . | . . . . . Allies Hacked . | . . . . . Hacks Repelled . | . . . . . Allies | -11 -10 -10 -10 -9 -------- Run | Jun Mat Min Exi Min Total Allies . | . . . . . Largest Group . | . . . . . Highest-Rated Group . | . . . . . Highest-Rated Ally . | . . . . . Total Orders . | . . . . . Ally Attacks . | . . . . . Total Damage . | . . . . . Kills . | . . . . . Allies Corrupted . | . . . . . Allies Melted . | . . . . . Intel | -11 -10 -10 -10 -9 ------- Run | Jun Mat Min Exi Min Robot Analysis Total . | . . . . . Derelict Logs Recovered 1 | . . . . 1 Drone Launches . | . . . . . Drone Recoveries . | . . . . . Exploration | -11 -10 -10 -10 -9 ------------- Run | Jun Mat Min Exi Min Turns Passed 1939 | 42 538 42 704 613 Spaces Moved 1361 | 31 396 41 570 323 Core 1 | 1 . . . . Treads . | . . . . . Legs . | . . . . . Wheels 1360 | 30 396 41 570 323 Hover . | . . . . . Flight . | . . . . . Fastest Speed 50 | 50 90 105 105 110 Average Speed 116 | 89 98 105 111 151 Slowest Speed 170 | 100 130 105 120 170 Overloaded Moves . | . . . . . Propulsion Burnouts . | . . . . . Robots Hopped . | . . . . . Cave-ins Triggered . | . . . . . Exploration Rate (%) 49 | 3 76 22 91 54 Regions Visited 4 Branch Regions 3 Pre-discovered Areas 1 | . . . . 1 Known Exits Taken 1 | . 1 . . . Unknown Exits Taken 3 | 1 . 1 1 . Scrap Searched 1 | . . . . 1 Spaces Dug 7 | . . . . 7 Terrain Destroyed 63 | . 24 . . 39 Melee . | . . . . . Projectile . | . . . . . AOE 63 | . 24 . . 39 Terrain Rammed . | . . . . . Walls Destroyed . | . . . . . Machines Disabled . | . . . . . Actions | -11 -10 -10 -10 -9 --------- Run | Jun Mat Min Exi Min Total 1524 | 42 465 40 598 379 Wait 4 | 2 1 . . 1 Move 1357 | 30 395 40 569 323 Hop . | . . . . . Pick Up 21 | 4 10 . 3 4 Fast Attach 14 | 6 6 . . 2 Attach 6 | . 3 . . 3 Detach 2 | . 1 . . 1 Swap 7 | . 6 . 1 . Drop 5 | . 3 . 1 1 Fire 105 | . 40 . 21 44 Melee . | . . . . . Ram . | . . . . . Kick . | . . . . . Crush . | . . . . . Escape Stasis . | . . . . . Rewire 3 | . . . 3 . Trap . | . . . . . Miscellaneous . | . . . . . Route ------- -11/Junkyard -10/Materials (discovered 2 exits: [*Mat] / *Min) -10/Mines -10/Exiles (discovered 2 exits: *Min x2) -9/Mines (discovered 1 exit: [*Mat]) History --------- Turn | Location | Event 23 | -11/Junkyard | Discovered new exit (range 16) 43 | -11/Junkyard | Entered Materials 161 | -10/Materials | Discovered new exit (range 16) 205 | -10/Materials | Identified exit to Mines 222 | -10/Materials | Discovered new exit (range 7) 302 | -10/Materials | Build established: Mutant 491 | -10/Materials | Core integrity fell below 50% 537 | -10/Materials | Lost 3 parts (1n1u1w) 538 | -10/Materials | Destroyed 8 combat bots 581 | -10/Materials | Entered Mines 618 | -10/Mines | Deemed a non-threat by the Exiles lab entrance 619 | -10/Mines | Discovered new exit (range 5) 623 | -10/Mines | Entered Exiles 623 | -10/Exiles | Found Exiles lab destroyed 637 | -10/Exiles | Discovered new exit (range 15) 1312 | -10/Exiles | Discovered new exit (range 10) 1327 | -10/Exiles | Entered Mines 1353 | -9/Mines | Discovered new exit (range 12) 1890 | -9/Mines | Learned location of Zion (-6) 1923 | -9/Mines | Core integrity fell below 20% 1940 | -9/Mines | Destroyed by S-10 Pest with Light Assault Rifle Last Messages --------------- 01904_ G-47 Trooper: "SECOND INTRUDER APPROACHING. ELIMINATE." 01907_ K-01 Serf destroyed. 01909_ K-01 Serf collects debris. 01924_ Lgt. Assault Rifle destroyed. 01924_ Critical hit (Burn: +37). 01926_ K-01 Serf collects debris. 01929_ Critical hit (Burn: +37). 01930_ K-01 Serf collects debris. 01932_ G-34 Mercenary destroyed. 01932_ K-01 Serf destroyed. 01934_ The unstable cave ceiling collapses. 01936_ S-10 Pest destroyed. 01937_ Med. Armor Plating destroyed. 01938_ S-10 Pest destroyed. 01938_ Wheel destroyed. 01938_ Destroyed Wheel. 01938_ Destroyed Flight Unit. 01938_ S-10 Pest destroyed. 01938_ Grenade Launcher destroyed. 01938_ U-05 Engineer lays Concrete. Map ----- +----------------------------------------------------+ | #????????????????????????????????????????????? | | ##????????????????????????????????????????????? | | ####?????????????????????????????????????????????? | | #??###???????????????????? ?#???????????????????? | | #?# ##??????????????????? #???????????????????? | | ## ##?????????????????? ##??????????????????? | | #?????????????????# #??????????????????? | | #????????????????# ##?????????????????? | | #???????????????? ??????????????????? | | ##???????????????? #???????????????????? | | #?????????????????# !#????????????????????? | | #????????????????## =%#????????????????????? | | #####?????????????#### =#????????????????????? | | ##???????????####### * #????????????????????? | | ##????????????# =%!#????????????????????? | | ##????????????# ###??????????????????? | | ##???????????# ##### ##?????????????????? | | ##??????????# #???## % #?????????????????? | | #??????????# #????## g #?????????????????? | | #??????????# ###???##u g #?????????????????? | | ##????????## ##???## #?#???????????????? | | =##???????# #???# # ##??????????????? | | %=#???????# #???# [%* #??????????????? | | ##??????# ##???# % # #????????????? | | # #####?## #?#### # """t ???????? | | # * ### ##?# @ """ ???# #??????? | | % ##??# ## %=""" ?????????????? | | ! ###??????#### s #????????????? | | ##????????????## ##????????????? | | ##### ###????????????????######?????????????? | | ##???# #?????????????????????????????????????? | | #????# #?????????????????????????????????????? | | ##????# #?????????????????????????????????????? | | ########## #?????????????????????????????????????? | | ????# #?????????????????????????????????????? | | ##### ######?????????????????????????????????????? | | #??????????????????????????????????????????? | | #######??????????????????????????????????????????? | | ?????????????????????????????????????????????????? | | ?????????????????????????????????????????????????? | | ?????????????????????????????????????????????????? | | ????????????#????????????????????????????????????? | | ####?????? ##???????????????????????????????????? | | %=!##### ##??????????????????????????????????? | | *[=%!!% < #??????????????????????????????????? | | =*%###### #??????????????????????????????????? | | !%#????????? #??????????????????????????????????? | | [#?????????????????????????????????????????????? | | #?????????????????????????????????????????????? | | ####?????????????????????????????????????????????? | +----------------------------------------------------+ Best States ------------- Heat Dissipation 25 Energy Generation 14 Energy Capacity 280 Matter Stores 300 Matter Capacity 300 Sight Range 16 Terrain Scan Density 10 Armor Coverage 225 Weapon Shielding 33 Evasion (%) 42 Item Schematics ----------------- None Robot Schematics ------------------ None Fabricated ------------ Nothing Alien Tech Used ----------------- None Achievements -------------- None Challenges ------------ None Game ------ Seed NetworkGuidedEngine Manual? 0 Play Time 00:17:20 Cumulative 90.6 hours Start 2023.03.12 @ 22:16:07 End 2023.03.12 @ 22:33:35 Sessions 1 Manual Loads 0 Difficulty Rogue Special Mode None Game No. 55 Rogue 55 Adventurer 0 Explorer 0 Win Type - Total 0 Types 0/0/0/0/0/0/0/0/0 Lore% 40 Gallery% 50 Achievement% 41 Wizard Run 0 Options --------- ASCII 0 Keyboard 1 Movement Vi Keybinds 0 Fullscreen 1 Font 12/Smallcaps Map View 83x54 Tactical HUD 1 Map Filters NONE Filters NONE Steam 1 RUN: 82679500-343e-41de-89dd-56c7fa8158ac